[Event "*** Titled Tuesday Blitz"]
[Site "Chess.com"]
[Date "2020.05.19"]
[Round "5"]
[White "hellokostya"]
[Black "Chess_Boxer123"]
[Result "0-1"]
[WhiteElo "2400"]
[BlackElo "2567"]
[TimeControl "180+1"]
[EndTime "12:58:02 PDT"]
[Termination "Chess_Boxer123 won on time"]

1. d4 {[%clk 0:03:00.9]} 1... d5 {[%clk 0:02:59]} 2. c4 {[%clk 0:03:00.1]} 2...
c6 {[%clk 0:02:58.8]} 3. cxd5 {[%clk 0:02:58.8]} 3... cxd5 {[%clk 0:02:57.5]} 4.
Bg5 {[%clk 0:02:58.4]} 4... f6 {[%clk 0:02:54.1]} 5. Bf4 {[%clk 0:02:51.1]} 5...
Nc6 {[%clk 0:02:53.6]} 6. Nc3 {[%clk 0:02:49.2]} 6... e5 {[%clk 0:02:50.4]} 7.
dxe5 {[%clk 0:02:06.1]} 7... fxe5 {[%clk 0:02:49.5]} 8. Bd2 {[%clk 0:02:06.2]}
8... Nf6 {[%clk 0:02:48.8]} 9. e3 {[%clk 0:02:03.5]} 9... Bb4 {[%clk 0:02:41.8]}
10. a3 {[%clk 0:02:01.1]} 10... Ba5 {[%clk 0:02:41.4]} 11. Nf3 {[%clk
0:01:48.1]} 11... O-O {[%clk 0:02:38.3]} 12. Qb3 {[%clk 0:01:45.4]} 12... Kh8
{[%clk 0:02:37.6]} 13. O-O-O {[%clk 0:01:37.5]} 13... d4 {[%clk 0:02:35.9]} 14.
exd4 {[%clk 0:01:21]} 14... exd4 {[%clk 0:02:34.9]} 15. Nb1 {[%clk 0:01:05.4]}
15... Bf5 {[%clk 0:02:25.2]} 16. Bd3 {[%clk 0:00:56.8]} 16... Bxd2+ {[%clk
0:02:08]} 17. Nbxd2 {[%clk 0:00:55.6]} 17... Na5 {[%clk 0:02:07.7]} 18. Qb5
{[%clk 0:00:48.3]} 18... Qd5 {[%clk 0:01:38.9]} 19. Qxd5 {[%clk 0:00:46.6]}
19... Rac8+ {[%clk 0:01:38.8]} 20. Nc4 {[%clk 0:00:15.6]} 20... Nxd5 {[%clk
0:01:34.9]} 21. Bxf5 {[%clk 0:00:15.4]} 21... Rxf5 {[%clk 0:01:30.5]} 22. Kb1
{[%clk 0:00:11.4]} 22... Nxc4 {[%clk 0:01:26.6]} 23. Rxd4 {[%clk 0:00:08.4]}
23... Ncb6 {[%clk 0:01:08.3]} 24. Rhd1 {[%clk 0:00:08.3]} 24... h6 {[%clk
0:01:08.1]} 25. Nh4 {[%clk 0:00:06.2]} 25... Rg5 {[%clk 0:01:07.2]} 26. g3
{[%clk 0:00:05.3]} 26... Kh7 {[%clk 0:00:57.6]} 27. f4 {[%clk 0:00:05.5]} 27...
Rh5 {[%clk 0:00:58.1]} 28. Nf3 {[%clk 0:00:05.3]} 28... Re8 {[%clk 0:00:54.7]}
29. Ne5 {[%clk 0:00:05.1]} 29... Nf6 {[%clk 0:00:44.7]} 30. Rc1 {[%clk
0:00:05.2]} 30... Re7 {[%clk 0:00:42.5]} 31. Rd8 {[%clk 0:00:05.3]} 31... Rxh2
{[%clk 0:00:40.3]} 32. Rb8 {[%clk 0:00:02.9]} 32... Rd2 {[%clk 0:00:25.7]} 33.
Nf3 {[%clk 0:00:02.8]} 33... Rdd7 {[%clk 0:00:25.2]} 34. Rh1 {[%clk 0:00:02]}
34... Re8 {[%clk 0:00:19.2]} 35. Rxe8 {[%clk 0:00:01.2]} 35... Nxe8 {[%clk
0:00:20.1]} 36. Ng5+ {[%clk 0:00:01.6]} 36... Kg6 {[%clk 0:00:20.7]} 37. Nf3
{[%clk 0:00:02.5]} 37... Re7 {[%clk 0:00:20.5]} 38. Ne5+ {[%clk 0:00:03.2]}
38... Kf5 {[%clk 0:00:20.9]} 39. Rd1 {[%clk 0:00:03.5]} 39... Nf6 {[%clk
0:00:20.2]} 40. Rf1 {[%clk 0:00:03.7]} 40... Ng4 {[%clk 0:00:19.9]} 41. Nf3
{[%clk 0:00:04]} 41... Ne3 {[%clk 0:00:19.7]} 42. Nh4+ {[%clk 0:00:03.5]} 42...
Kg4 {[%clk 0:00:19.6]} 43. Rg1 {[%clk 0:00:03.8]} 43... Nbd5 {[%clk 0:00:19.7]}
44. Ng6 {[%clk 0:00:04]} 44... Rc7 {[%clk 0:00:19.9]} 45. Ne5+ {[%clk
0:00:04.6]} 45... Kh3 {[%clk 0:00:20]} 46. g4 {[%clk 0:00:04.9]} 46... Nxf4
{[%clk 0:00:19.7]} 47. g5 {[%clk 0:00:04.9]} 47... h5 {[%clk 0:00:17.5]} 48. g6
{[%clk 0:00:04.6]} 48... h4 {[%clk 0:00:17.7]} 49. Nf3 {[%clk 0:00:04.9]} 49...
Nfg2 {[%clk 0:00:16.5]} 50. Ng5+ {[%clk 0:00:04.9]} 50... Kg4 {[%clk 0:00:16.5]}
51. Ne6 {[%clk 0:00:05.8]} 51... Re7 {[%clk 0:00:16.1]} 52. Nd4 {[%clk 0:00:06]}
52... h3 {[%clk 0:00:16.5]} 53. Rh1 {[%clk 0:00:05.2]} 53... Re4 {[%clk
0:00:13.8]} 54. Ne2 {[%clk 0:00:05.4]} 54... Re6 {[%clk 0:00:13.2]} 55. Ng1
{[%clk 0:00:05.8]} 55... Nf4 {[%clk 0:00:11.8]} 56. Rh2 {[%clk 0:00:05.5]} 56...
Neg2 {[%clk 0:00:12.2]} 57. Nxh3 {[%clk 0:00:05.3]} 57... Kg3 {[%clk 0:00:12.7]}
58. Rh1 {[%clk 0:00:06.2]} 58... Nxh3 {[%clk 0:00:12.6]} 59. Rc1 {[%clk
0:00:06.3]} 59... Re1 {[%clk 0:00:12.6]} 0-1

[Event "*** Titled Tuesday Blitz"]
[Site "Chess.com"]
[Date "2020.05.19"]
[Round "5"]
[White "Hippotaner"]
[Black "korbul"]
[Result "1/2-1/2"]
[WhiteElo "2316"]
[BlackElo "2449"]
[TimeControl "180+1"]
[EndTime "12:58:03 PDT"]
[Termination "Game drawn by repetition"]

1. e4 {[%clk 0:02:58]} 1... c5 {[%clk 0:02:59.4]} 2. Nf3 {[%clk 0:02:56.2]} 2...
e6 {[%clk 0:02:59.5]} 3. d3 {[%clk 0:02:49.8]} 3... d5 {[%clk 0:02:58.1]} 4.
Nbd2 {[%clk 0:02:50]} 4... Nf6 {[%clk 0:02:57.4]} 5. g3 {[%clk 0:02:49.9]} 5...
Nc6 {[%clk 0:02:57.1]} 6. Bg2 {[%clk 0:02:48.9]} 6... Be7 {[%clk 0:02:57.3]} 7.
O-O {[%clk 0:02:45.7]} 7... O-O {[%clk 0:02:57.3]} 8. Re1 {[%clk 0:02:44.1]}
8... Rb8 {[%clk 0:02:56.5]} 9. e5 {[%clk 0:02:43.7]} 9... Ne8 {[%clk 0:02:56]}
10. h4 {[%clk 0:02:42.7]} 10... b5 {[%clk 0:02:55.7]} 11. Nf1 {[%clk 0:02:41.9]}
11... Nc7 {[%clk 0:02:54.6]} 12. Bf4 {[%clk 0:02:41.4]} 12... b4 {[%clk
0:02:54.2]} 13. Ne3 {[%clk 0:02:39.5]} 13... Nb5 {[%clk 0:02:53.8]} 14. h5
{[%clk 0:02:34.7]} 14... Nbd4 {[%clk 0:02:49.3]} 15. Ng4 {[%clk 0:02:24.9]}
15... Nxf3+ {[%clk 0:02:47.2]} 16. Qxf3 {[%clk 0:02:18.2]} 16... Nd4 {[%clk
0:02:47.5]} 17. Qd1 {[%clk 0:02:18.4]} 17... a5 {[%clk 0:02:39.7]} 18. h6 {[%clk
0:02:17.6]} 18... g6 {[%clk 0:02:37]} 19. c3 {[%clk 0:02:14.1]} 19... Nf5 {[%clk
0:02:34.4]} 20. Bh3 {[%clk 0:01:28.1]} 20... Ba6 {[%clk 0:02:31.7]} 21. Nf6+
{[%clk 0:01:27.2]} 21... Bxf6 {[%clk 0:02:24.2]} 22. exf6 {[%clk 0:01:27.2]}
22... Qxf6 {[%clk 0:02:17]} 23. Bxb8 {[%clk 0:01:21]} 23... Rxb8 {[%clk
0:02:15.2]} 24. Qf3 {[%clk 0:01:18.5]} 24... Qg5 {[%clk 0:01:53.1]} 25. Bxf5
{[%clk 0:00:59.6]} 25... gxf5 {[%clk 0:01:52.2]} 26. d4 {[%clk 0:00:48.1]} 26...
cxd4 {[%clk 0:01:40]} 27. cxd4 {[%clk 0:00:47.7]} 27... Qxh6 {[%clk 0:01:36.7]}
28. Rac1 {[%clk 0:00:45.7]} 28... b3 {[%clk 0:01:10.2]} 29. axb3 {[%clk
0:00:41]} 29... Qg5 {[%clk 0:01:04.1]} 30. Rc7 {[%clk 0:00:37.8]} 30... h5
{[%clk 0:00:58.2]} 31. Ra7 {[%clk 0:00:28]} 31... Rb6 {[%clk 0:00:50]} 32. Qe3
{[%clk 0:00:20.1]} 32... Qxe3 {[%clk 0:00:49]} 33. Rxe3 {[%clk 0:00:21]} 33...
Kg7 {[%clk 0:00:47.3]} 34. Rc3 {[%clk 0:00:21.2]} 34... Be2 {[%clk 0:00:41.6]}
35. Rcc7 {[%clk 0:00:20.9]} 35... Rxb3 {[%clk 0:00:32.2]} 36. Rxf7+ {[%clk
0:00:21.8]} 36... Kg6 {[%clk 0:00:32.3]} 37. Rg7+ {[%clk 0:00:21.1]} 37... Kh6
{[%clk 0:00:32.4]} 38. Rh7+ {[%clk 0:00:20.7]} 38... Kg6 {[%clk 0:00:31.7]} 39.
Rag7+ {[%clk 0:00:21.2]} 39... Kf6 {[%clk 0:00:31.5]} 40. Rf7+ {[%clk
0:00:20.8]} 40... Kg6 {[%clk 0:00:31.6]} 41. Rhg7+ {[%clk 0:00:20.3]} 41... Kh6
{[%clk 0:00:31.7]} 42. Rh7+ {[%clk 0:00:11.6]} 42... Kg6 {[%clk 0:00:30.9]} 43.
Rfg7+ {[%clk 0:00:11.1]} 43... Kf6 {[%clk 0:00:30.9]} 44. f4 {[%clk 0:00:09.2]}
44... Bg4 {[%clk 0:00:17.7]} 45. Ra7 {[%clk 0:00:07.1]} 45... Kg6 {[%clk
0:00:13.2]} 46. Rhg7+ {[%clk 0:00:07.2]} 46... Kh6 {[%clk 0:00:12.2]} 47. Rge7
{[%clk 0:00:06.8]} 47... Re3 {[%clk 0:00:10.5]} 48. Rh7+ {[%clk 0:00:06.7]}
48... Kg6 {[%clk 0:00:10.2]} 49. Rhg7+ {[%clk 0:00:06.4]} 49... Kh6 {[%clk
0:00:10.2]} 50. Rh7+ {[%clk 0:00:06.7]} 50... Kg6 {[%clk 0:00:10.5]} 51. Rag7+
{[%clk 0:00:07.6]} 51... Kf6 {[%clk 0:00:10.5]} 52. Rf7+ {[%clk 0:00:04.7]}
52... Kg6 {[%clk 0:00:10.6]} 53. Rhg7+ {[%clk 0:00:04.7]} 53... Kh6 {[%clk
0:00:10.7]} 54. Rh7+ {[%clk 0:00:03.7]} 54... Kg6 {[%clk 0:00:10.9]} 55. Rhg7+
{[%clk 0:00:04.1]} 55... Kh6 {[%clk 0:00:10.9]} 56. Rh7+ {[%clk 0:00:04.4]}
56... Kg6 {[%clk 0:00:11.1]} 1/2-1/2

[Event "*** Titled Tuesday Blitz"]
[Site "Chess.com"]
[Date "2020.05.19"]
[Round "5"]
[White "MergenKakabaev"]
[Black "YellowJacek"]
[Result "1-0"]
[WhiteElo "2448"]
[BlackElo "2293"]
[TimeControl "180+1"]
[EndTime "12:58:03 PDT"]
[Termination "MergenKakabaev won by resignation"]

1. e4 {[%clk 0:02:59.8]} 1... c5 {[%clk 0:02:58.6]} 2. Nf3 {[%clk 0:02:59.1]}
2... d6 {[%clk 0:02:58.8]} 3. d4 {[%clk 0:02:58]} 3... cxd4 {[%clk 0:02:58.8]}
4. Nxd4 {[%clk 0:02:58.8]} 4... Nf6 {[%clk 0:02:59.1]} 5. Nc3 {[%clk 0:02:58.8]}
5... g6 {[%clk 0:02:59.4]} 6. Be2 {[%clk 0:02:58.5]} 6... Bg7 {[%clk 0:02:59.2]}
7. Be3 {[%clk 0:02:59]} 7... O-O {[%clk 0:02:56.5]} 8. O-O {[%clk 0:02:57.3]}
8... Nc6 {[%clk 0:02:56.8]} 9. Qd2 {[%clk 0:02:57.7]} 9... d5 {[%clk 0:02:14.9]}
10. Nxc6 {[%clk 0:02:54.5]} 10... bxc6 {[%clk 0:02:15.8]} 11. e5 {[%clk
0:02:54.5]} 11... Ne4 {[%clk 0:02:01.4]} 12. Nxe4 {[%clk 0:02:51.5]} 12... dxe4
{[%clk 0:02:01.7]} 13. Qc3 {[%clk 0:02:52.1]} 13... Qc7 {[%clk 0:01:50.9]} 14.
Bf4 {[%clk 0:02:42.3]} 14... Be6 {[%clk 0:01:49.8]} 15. Rfe1 {[%clk 0:02:34.5]}
15... Rad8 {[%clk 0:00:53.5]} 16. Bg3 {[%clk 0:02:21.6]} 16... Rd5 {[%clk
0:00:49.8]} 17. Bc4 {[%clk 0:02:09.9]} 17... Rc5 {[%clk 0:00:42.9]} 18. Rxe4
{[%clk 0:02:08.3]} 18... Bxc4 {[%clk 0:00:37.1]} 19. Rxc4 {[%clk 0:02:06.3]}
19... Rxc4 {[%clk 0:00:38]} 20. Qxc4 {[%clk 0:02:07]} 20... Bxe5 {[%clk
0:00:38.3]} 21. Re1 {[%clk 0:01:59.2]} 21... Bxg3 {[%clk 0:00:36.9]} 22. hxg3
{[%clk 0:02:00.1]} 22... Rd8 {[%clk 0:00:33.6]} 23. b4 {[%clk 0:01:53.8]} 23...
Rd5 {[%clk 0:00:31.8]} 24. Qe4 {[%clk 0:01:31.6]} 24... e6 {[%clk 0:00:25.4]}
25. c4 {[%clk 0:01:30]} 25... Rd2 {[%clk 0:00:23.6]} 26. a3 {[%clk 0:01:29.8]}
26... Qd6 {[%clk 0:00:16.5]} 27. c5 {[%clk 0:01:24.7]} 27... Qd7 {[%clk
0:00:09.9]} 28. g4 {[%clk 0:01:13.4]} 28... Rd3 {[%clk 0:00:08.7]} 29. Re3
{[%clk 0:01:12.3]} 29... Rxe3 {[%clk 0:00:08.6]} 30. Qxe3 {[%clk 0:01:13.2]}
30... Qd1+ {[%clk 0:00:08]} 31. Kh2 {[%clk 0:01:12.8]} 31... Qxg4 {[%clk
0:00:08.4]} 32. Qe5 {[%clk 0:01:11.6]} 32... Qh4+ {[%clk 0:00:05.8]} 33. Kg1
{[%clk 0:01:10.5]} 33... Qd8 {[%clk 0:00:06.7]} 34. g3 {[%clk 0:01:08.9]} 34...
h6 {[%clk 0:00:05.7]} 35. Qf4 {[%clk 0:01:04.7]} 35... h5 {[%clk 0:00:04.6]} 36.
a4 {[%clk 0:01:01.4]} 36... Qd1+ {[%clk 0:00:04.2]} 37. Kg2 {[%clk 0:01:01.4]}
37... Qxa4 {[%clk 0:00:04.9]} 38. Qd6 {[%clk 0:01:01.9]} 38... Qb5 {[%clk
0:00:03.9]} 39. Qd8+ {[%clk 0:00:58.3]} 39... Kg7 {[%clk 0:00:04.2]} 40. Qd4+
{[%clk 0:00:58.2]} 40... Kg8 {[%clk 0:00:04.7]} 41. Qd8+ {[%clk 0:00:58.1]}
41... Kg7 {[%clk 0:00:05.1]} 42. Qd4+ {[%clk 0:00:58.3]} 42... Kh7 {[%clk
0:00:05.5]} 43. Qf6 {[%clk 0:00:55.9]} 43... Qb7 {[%clk 0:00:05.6]} 44. Qf4
{[%clk 0:00:50.7]} 44... Qd7 {[%clk 0:00:05.4]} 45. Qd6 {[%clk 0:00:49.5]} 45...
Qb7 {[%clk 0:00:04.6]} 46. Qf4 {[%clk 0:00:48.7]} 46... Kg8 {[%clk 0:00:04.8]}
47. Qd6 {[%clk 0:00:47.8]} 47... Qxb4 {[%clk 0:00:04]} 48. Qxc6 {[%clk
0:00:47.6]} 48... a5 {[%clk 0:00:03.2]} 49. Qa8+ {[%clk 0:00:43.4]} 49... Kg7
{[%clk 0:00:03.5]} 50. c6 {[%clk 0:00:43.9]} 50... Qe4+ {[%clk 0:00:03.6]} 51.
Kg1 {[%clk 0:00:43.7]} 51... a4 {[%clk 0:00:04]} 52. Qa6 {[%clk 0:00:41.6]}
52... a3 {[%clk 0:00:03.8]} 53. c7 {[%clk 0:00:40.4]} 53... Qe1+ {[%clk
0:00:03.5]} 54. Kg2 {[%clk 0:00:39.5]} 54... Qc3 {[%clk 0:00:03.5]} 55. c8=Q
{[%clk 0:00:38.3]} 55... Qxc8 {[%clk 0:00:01.5]} 56. Qxc8 {[%clk 0:00:39.2]} 1-0

[Event "*** Titled Tuesday Blitz"]
[Site "Chess.com"]
[Date "2020.05.19"]
[Round "5"]
[White "Tormoz"]
[Black "realmadridtv"]
[Result "1-0"]
[WhiteElo "2674"]
[BlackElo "2477"]
[TimeControl "180+1"]
[EndTime "12:58:05 PDT"]
[Termination "Tormoz won by resignation"]

1. d4 {[%clk 0:03:00.9]} 1... Nf6 {[%clk 0:02:59.2]} 2. Nf3 {[%clk 0:03:01]}
2... g6 {[%clk 0:02:58.9]} 3. g3 {[%clk 0:03:01.3]} 3... Bg7 {[%clk 0:02:59.2]}
4. Bg2 {[%clk 0:03:02.2]} 4... O-O {[%clk 0:02:59.4]} 5. O-O {[%clk 0:03:03.1]}
5... b6 {[%clk 0:02:59.9]} 6. Ne5 {[%clk 0:02:57]} 6... c6 {[%clk 0:02:59.4]} 7.
c4 {[%clk 0:02:56.5]} 7... Qc7 {[%clk 0:02:55.6]} 8. Nc3 {[%clk 0:02:53.3]} 8...
d6 {[%clk 0:02:54.9]} 9. Nf3 {[%clk 0:02:46.8]} 9... Bb7 {[%clk 0:02:53.1]} 10.
Bf4 {[%clk 0:02:37.9]} 10... Nbd7 {[%clk 0:02:49.6]} 11. d5 {[%clk 0:02:36.7]}
11... cxd5 {[%clk 0:02:34.2]} 12. cxd5 {[%clk 0:02:37.6]} 12... Nc5 {[%clk
0:02:30.2]} 13. Nd4 {[%clk 0:02:36.5]} 13... a6 {[%clk 0:02:22.9]} 14. Rc1
{[%clk 0:02:35.4]} 14... e5 {[%clk 0:01:57.7]} 15. dxe6 {[%clk 0:02:25.4]} 15...
fxe6 {[%clk 0:01:54.8]} 16. Bxb7 {[%clk 0:01:26.3]} 16... Qxb7 {[%clk
0:01:54.3]} 17. Bxd6 {[%clk 0:01:01.5]} 17... Rfd8 {[%clk 0:01:48.3]} 18. Bxc5
{[%clk 0:01:01.7]} 18... bxc5 {[%clk 0:01:48.2]} 19. Qb3 {[%clk 0:01:02.4]}
19... Qxb3 {[%clk 0:01:45.7]} 20. Nxb3 {[%clk 0:01:02.6]} 20... c4 {[%clk
0:01:42.2]} 21. Nc5 {[%clk 0:01:00.7]} 21... Rd2 {[%clk 0:01:33.9]} 22. Nxe6
{[%clk 0:00:56.9]} 22... Rxb2 {[%clk 0:01:29.8]} 23. Rb1 {[%clk 0:00:48.9]}
23... Rab8 {[%clk 0:01:18.3]} 24. Rxb2 {[%clk 0:00:48.2]} 24... Rxb2 {[%clk
0:01:19.2]} 25. Nxg7 {[%clk 0:00:47.9]} 25... Kxg7 {[%clk 0:01:18.8]} 26. Rc1
{[%clk 0:00:48.5]} 26... Kf7 {[%clk 0:01:15.4]} 27. Kf1 {[%clk 0:00:48.5]} 27...
Ke6 {[%clk 0:01:15]} 28. Ke1 {[%clk 0:00:48.2]} 28... Ng4 {[%clk 0:01:13.2]} 29.
h3 {[%clk 0:00:46.3]} 29... Ne5 {[%clk 0:01:12.4]} 30. Kd1 {[%clk 0:00:44.8]}
30... Kd6 {[%clk 0:00:58.6]} 31. Rb1 {[%clk 0:00:43.9]} 31... Rxb1+ {[%clk
0:00:59]} 32. Nxb1 {[%clk 0:00:44.8]} 32... Kc5 {[%clk 0:00:59.9]} 33. Kc2
{[%clk 0:00:44.4]} 33... Kd4 {[%clk 0:00:56.5]} 34. Nd2 {[%clk 0:00:38.4]} 34...
a5 {[%clk 0:00:49.6]} 35. a3 {[%clk 0:00:35.1]} 35... a4 {[%clk 0:00:44.5]} 36.
Nb1 {[%clk 0:00:33.6]} 36... Nd7 {[%clk 0:00:39]} 37. e3+ {[%clk 0:00:28.1]}
37... Ke4 {[%clk 0:00:35.7]} 38. Nd2+ {[%clk 0:00:27.5]} 38... Kd5 {[%clk
0:00:34.6]} 39. Kc3 {[%clk 0:00:28]} 39... Ne5 {[%clk 0:00:33.8]} 40. f4 {[%clk
0:00:27.1]} 40... Nd3 {[%clk 0:00:29.5]} 41. Nxc4 {[%clk 0:00:25.3]} 41... Nf2
{[%clk 0:00:29.9]} 42. Nd2 {[%clk 0:00:20.1]} 42... Nxh3 {[%clk 0:00:29.1]} 43.
e4+ {[%clk 0:00:20.1]} 43... Kc5 {[%clk 0:00:29.5]} 44. e5 {[%clk 0:00:19.6]}
44... Nf2 {[%clk 0:00:29]} 45. Kc2 {[%clk 0:00:15]} 45... Ng4 {[%clk 0:00:27.2]}
46. Kd3 {[%clk 0:00:14.4]} 46... Kd5 {[%clk 0:00:24.2]} 47. Ne4 {[%clk 0:00:14]}
47... h5 {[%clk 0:00:20.2]} 48. Nc3+ {[%clk 0:00:14.1]} 48... Kc5 {[%clk
0:00:16.1]} 49. Nxa4+ {[%clk 0:00:15]} 49... Kb5 {[%clk 0:00:16.8]} 50. Nc3+
{[%clk 0:00:15.3]} 50... Kc5 {[%clk 0:00:16.2]} 51. Ne4+ {[%clk 0:00:14.8]}
51... Kc6 {[%clk 0:00:15]} 52. Nf6 {[%clk 0:00:14.7]} 52... Nf2+ {[%clk
0:00:14.8]} 53. Kd4 {[%clk 0:00:15.1]} 53... Nh1 {[%clk 0:00:14.7]} 54. Ne4
{[%clk 0:00:15.4]} 54... Kd7 {[%clk 0:00:09.5]} 55. a4 {[%clk 0:00:15.3]} 55...
Ke7 {[%clk 0:00:10.4]} 56. a5 {[%clk 0:00:15.7]} 56... Nxg3 {[%clk 0:00:09.8]}
57. Nxg3 {[%clk 0:00:15.3]} 57... h4 {[%clk 0:00:10.7]} 58. Nf1 {[%clk
0:00:15.4]} 1-0

[Event "*** Titled Tuesday Blitz"]
[Site "Chess.com"]
[Date "2020.05.19"]
[Round "5"]
[White "ClassyEl"]
[Black "ajdemipopushi"]
[Result "0-1"]
[WhiteElo "2476"]
[BlackElo "2305"]
[TimeControl "180+1"]
[EndTime "12:58:07 PDT"]
[Termination "ajdemipopushi won on time"]

1. d4 {[%clk 0:03:00.9]} 1... Nf6 {[%clk 0:02:59.3]} 2. Bg5 {[%clk 0:02:59.8]}
2... c5 {[%clk 0:02:57.6]} 3. Bxf6 {[%clk 0:02:59.2]} 3... gxf6 {[%clk
0:02:57.5]} 4. d5 {[%clk 0:02:58.8]} 4... Qb6 {[%clk 0:02:57.2]} 5. Qc1 {[%clk
0:02:58.4]} 5... f5 {[%clk 0:02:57]} 6. e3 {[%clk 0:02:57.8]} 6... Bg7 {[%clk
0:02:50.6]} 7. c3 {[%clk 0:02:58]} 7... e5 {[%clk 0:02:49.1]} 8. a4 {[%clk
0:02:56.2]} 8... Qg6 {[%clk 0:02:02.8]} 9. Na3 {[%clk 0:02:53.3]} 9... d6 {[%clk
0:02:01.4]} 10. h4 {[%clk 0:02:50.8]} 10... h5 {[%clk 0:01:58.1]} 11. g3 {[%clk
0:02:50.5]} 11... Bh6 {[%clk 0:01:50.6]} 12. Bh3 {[%clk 0:02:48]} 12... Ke7
{[%clk 0:01:43.5]} 13. Ne2 {[%clk 0:02:44.5]} 13... Nd7 {[%clk 0:01:33.5]} 14.
Qc2 {[%clk 0:02:39.1]} 14... Nf6 {[%clk 0:01:32]} 15. Nc4 {[%clk 0:02:27.6]}
15... b6 {[%clk 0:01:07.2]} 16. b4 {[%clk 0:02:07.5]} 16... Bd7 {[%clk
0:01:04.9]} 17. bxc5 {[%clk 0:01:28.2]} 17... bxc5 {[%clk 0:01:04.4]} 18. Na5
{[%clk 0:01:19.4]} 18... Ng4 {[%clk 0:00:56.6]} 19. Nc6+ {[%clk 0:01:14]} 19...
Kf6 {[%clk 0:00:53.6]} 20. a5 {[%clk 0:01:09.3]} 20... Rhg8 {[%clk 0:00:52.1]}
21. Qd3 {[%clk 0:00:58.3]} 21... Kg7 {[%clk 0:00:43.6]} 22. Rb1 {[%clk
0:00:55.7]} 22... Qf6 {[%clk 0:00:36]} 23. Rb7 {[%clk 0:00:51]} 23... Bxc6
{[%clk 0:00:26.8]} 24. dxc6 {[%clk 0:00:50.9]} 24... Rac8 {[%clk 0:00:26.8]} 25.
Bg2 {[%clk 0:00:49.7]} 25... e4 {[%clk 0:00:23.8]} 26. Qd2 {[%clk 0:00:34.3]}
26... Rxc6 {[%clk 0:00:20.3]} 27. Rxa7 {[%clk 0:00:32.6]} 27... Rb8 {[%clk
0:00:18.3]} 28. O-O {[%clk 0:00:32.3]} 28... Ne5 {[%clk 0:00:17.9]} 29. Nf4
{[%clk 0:00:28.6]} 29... Bxf4 {[%clk 0:00:17.4]} 30. exf4 {[%clk 0:00:28.8]}
30... Nd3 {[%clk 0:00:17.3]} 31. Qe2 {[%clk 0:00:22.9]} 31... Kg6 {[%clk
0:00:15.2]} 32. Rd1 {[%clk 0:00:20]} 32... Rb2 {[%clk 0:00:14.1]} 33. Rd2 {[%clk
0:00:20.5]} 33... Rxd2 {[%clk 0:00:13.6]} 34. Qxd2 {[%clk 0:00:20.6]} 34... d5
{[%clk 0:00:13.2]} 35. Bf1 {[%clk 0:00:19.3]} 35... c4 {[%clk 0:00:12.2]} 36.
Be2 {[%clk 0:00:19.5]} 36... d4 {[%clk 0:00:12.4]} 37. cxd4 {[%clk 0:00:18.3]}
37... Qxd4 {[%clk 0:00:12.6]} 38. Ra8 {[%clk 0:00:18.2]} 38... c3 {[%clk
0:00:11.4]} 39. Bxh5+ {[%clk 0:00:15.9]} 39... Kxh5 {[%clk 0:00:10.3]} 40. Qe2+
{[%clk 0:00:15.5]} 40... Kg6 {[%clk 0:00:08.6]} 41. Rg8+ {[%clk 0:00:15.3]}
41... Kf6 {[%clk 0:00:08.7]} 42. g4 {[%clk 0:00:07.7]} 42... Qxf2+ {[%clk
0:00:07.4]} 43. Qxf2 {[%clk 0:00:07.7]} 43... Nxf2 {[%clk 0:00:07.7]} 44. g5+
{[%clk 0:00:08.2]} 44... Ke7 {[%clk 0:00:07.5]} 45. a6 {[%clk 0:00:07.4]} 45...
Rxa6 {[%clk 0:00:06.2]} 46. Rc8 {[%clk 0:00:06.7]} 46... Nd3 {[%clk 0:00:05.7]}
47. Rxc3 {[%clk 0:00:05.9]} 47... Nxf4 {[%clk 0:00:05.9]} 48. Rc5 {[%clk
0:00:06]} 48... Ne2+ {[%clk 0:00:02.1]} 49. Kf2 {[%clk 0:00:05.8]} 49... Nd4
{[%clk 0:00:02.8]} 50. Ke3 {[%clk 0:00:05.6]} 50... Rd6 {[%clk 0:00:03.3]} 51.
h5 {[%clk 0:00:04.9]} 51... Ne6 {[%clk 0:00:03.3]} 52. Rxf5 {[%clk 0:00:04.3]}
52... Rd3+ {[%clk 0:00:03]} 53. Kxe4 {[%clk 0:00:04]} 53... Rg3 {[%clk
0:00:03.6]} 0-1